[Event "Late-Titled-Tuesday-Blitz-May-07-2024"]
[Site "Chess.com"]
[Date "2024.05.07"]
[Round "8"]
[White "The_Machine04"]
[Black "Sanan_Sjugirov"]
[Result "0-1"]
[WhiteElo "2779"]
[BlackElo "3021"]
[TimeControl "180+1"]
[EndTime "15:28:48 PDT"]
[Termination "Sanan_Sjugirov won by checkmate"]

1. d4 {[%clk 0:03:00.9]} 1... Nf6 {[%clk 0:02:57.7]} 2. Nf3 {[%clk 0:03:01.3]}
2... e6 {[%clk 0:02:58.1]} 3. Nbd2 {[%clk 0:03:01.6]} 3... c5 {[%clk 0:02:57.8]}
4. e3 {[%clk 0:03:01.9]} 4... cxd4 {[%clk 0:02:57.3]} 5. exd4 {[%clk 0:03:02.8]}
5... b6 {[%clk 0:02:57.9]} 6. c3 {[%clk 0:03:03]} 6... Bb7 {[%clk 0:02:58.5]} 7.
Bd3 {[%clk 0:03:03.1]} 7... Be7 {[%clk 0:02:59]} 8. O-O {[%clk 0:03:02.1]} 8...
d6 {[%clk 0:02:59.7]} 9. Qe2 {[%clk 0:03:00.2]} 9... Nbd7 {[%clk 0:03:00.2]} 10.
Re1 {[%clk 0:02:57.2]} 10... O-O {[%clk 0:03:00.1]} 11. Nf1 {[%clk 0:02:48.2]}
11... a6 {[%clk 0:02:59.9]} 12. a4 {[%clk 0:02:48.5]} 12... Re8 {[%clk
0:02:59.7]} 13. Ng3 {[%clk 0:02:48.2]} 13... Qc7 {[%clk 0:03:00.3]} 14. h4
{[%clk 0:02:46.2]} 14... Bf8 {[%clk 0:02:59.9]} 15. h5 {[%clk 0:02:46.4]} 15...
e5 {[%clk 0:03:00]} 16. dxe5 {[%clk 0:02:43]} 16... dxe5 {[%clk 0:03:00.9]} 17.
Ne4 {[%clk 0:02:23.1]} 17... Nxe4 {[%clk 0:03:01]} 18. Bxe4 {[%clk 0:02:24]}
18... Bxe4 {[%clk 0:03:01.6]} 19. Qxe4 {[%clk 0:02:24.9]} 19... Nf6 {[%clk
0:03:02.3]} 20. Qf5 {[%clk 0:02:24.4]} 20... e4 {[%clk 0:03:02.4]} 21. Bf4
{[%clk 0:02:24.2]} 21... Qc5 {[%clk 0:02:57]} 22. Nd4 {[%clk 0:01:40.6]} 22...
Rad8 {[%clk 0:02:53.8]} 23. Qxc5 {[%clk 0:01:35.9]} 23... Bxc5 {[%clk
0:02:53.8]} 24. h6 {[%clk 0:01:24.2]} 24... Bxd4 {[%clk 0:02:53.5]} 25. cxd4
{[%clk 0:01:25.1]} 25... Nd5 {[%clk 0:02:53.5]} 26. Bd2 {[%clk 0:01:21.5]} 26...
Rc8 {[%clk 0:02:51.6]} 27. Rac1 {[%clk 0:01:20.1]} 27... f5 {[%clk 0:02:50.7]}
28. hxg7 {[%clk 0:01:19]} 28... Kxg7 {[%clk 0:02:50.6]} 29. g3 {[%clk
0:01:19.2]} 29... Kg6 {[%clk 0:02:50.6]} 30. Kg2 {[%clk 0:01:19.3]} 30... h5
{[%clk 0:02:49.2]} 31. Rh1 {[%clk 0:01:16.1]} 31... Ne7 {[%clk 0:02:30.4]} 32.
Be3 {[%clk 0:01:05.5]} 32... Nd5 {[%clk 0:02:29.3]} 33. Bd2 {[%clk 0:01:04]}
33... Red8 {[%clk 0:02:30]} 34. Be3 {[%clk 0:00:59.3]} 34... Nb4 {[%clk
0:02:28.8]} 35. b3 {[%clk 0:00:44.9]} 35... Nd5 {[%clk 0:02:14.3]} 36. Bd2
{[%clk 0:00:42.1]} 36... Ne7 {[%clk 0:02:03.8]} 37. Be3 {[%clk 0:00:41.5]} 37...
b5 {[%clk 0:01:27.9]} 38. axb5 {[%clk 0:00:38.9]} 38... axb5 {[%clk 0:01:28.8]}
39. Rc5 {[%clk 0:00:31.8]} 39... Rxc5 {[%clk 0:01:28.8]} 40. dxc5 {[%clk
0:00:32.7]} 40... Rd3 {[%clk 0:01:29.4]} 41. Rc1 {[%clk 0:00:26.3]} 41... Nc6
{[%clk 0:01:28.9]} 42. Ra1 {[%clk 0:00:26.7]} 42... Nb4 {[%clk 0:01:21.7]} 43.
Ra5 {[%clk 0:00:19.9]} 43... Nd5 {[%clk 0:01:21.7]} 44. Rxb5 {[%clk 0:00:17.2]}
44... Nxe3+ {[%clk 0:01:21.8]} 45. fxe3 {[%clk 0:00:18.1]} 45... Rxe3 {[%clk
0:01:22.7]} 46. b4 {[%clk 0:00:17.3]} 46... Rc3 {[%clk 0:01:22.8]} 47. Rb8
{[%clk 0:00:14.7]} 47... Rc2+ {[%clk 0:01:23.1]} 48. Kf1 {[%clk 0:00:13]} 48...
h4 {[%clk 0:01:23.7]} 49. gxh4 {[%clk 0:00:12.7]} 49... f4 {[%clk 0:01:24.2]}
50. Rf8 {[%clk 0:00:11]} 50... f3 {[%clk 0:01:24.2]} 51. h5+ {[%clk 0:00:06.7]}
51... Kxh5 {[%clk 0:01:21.7]} 52. Re8 {[%clk 0:00:07.1]} 52... Rc4 {[%clk
0:01:17.7]} 53. c6 {[%clk 0:00:06.1]} 53... Kg4 {[%clk 0:01:16.4]} 54. b5 {[%clk
0:00:02.4]} 54... Kf4 {[%clk 0:01:15.3]} 55. b6 {[%clk 0:00:00.5]} 55... Ke3
{[%clk 0:01:13.9]} 56. Kg1 {[%clk 0:00:00.3]} 56... f2+ {[%clk 0:01:12.6]} 57.
Kg2 {[%clk 0:00:00.8]} 57... Rxc6 {[%clk 0:01:12.8]} 58. b7 {[%clk 0:00:01.3]}
58... Rg6+ {[%clk 0:01:12.8]} 59. Kf1 {[%clk 0:00:01.8]} 59... Rg1# {[%clk
0:01:12.8]} 0-1

[Event "Late-Titled-Tuesday-Blitz-May-07-2024"]
[Site "Chess.com"]
[Date "2024.05.07"]
[Round "8"]
[White "Pig-filth"]
[Black "Licancabur"]
[Result "0-1"]
[WhiteElo "2321"]
[BlackElo "2492"]
[TimeControl "180+1"]
[EndTime "15:28:48 PDT"]
[Termination "Licancabur won on time"]

1. d4 {[%clk 0:03:00.9]} 1... d5 {[%clk 0:02:59.2]} 2. Bg5 {[%clk 0:03:00.1]}
2... Nf6 {[%clk 0:02:55.2]} 3. Bxf6 {[%clk 0:02:57.2]} 3... gxf6 {[%clk
0:02:55.3]} 4. e3 {[%clk 0:02:54.9]} 4... c5 {[%clk 0:02:48.2]} 5. Nc3 {[%clk
0:02:51.7]} 5... Nc6 {[%clk 0:02:40.7]} 6. Qh5 {[%clk 0:02:47.4]} 6... e6 {[%clk
0:02:32.2]} 7. dxc5 {[%clk 0:02:42.9]} 7... Bxc5 {[%clk 0:02:31.1]} 8. O-O-O
{[%clk 0:02:39]} 8... Bd7 {[%clk 0:02:27.6]} 9. e4 {[%clk 0:02:35.5]} 9... Qa5
{[%clk 0:01:51.4]} 10. exd5 {[%clk 0:02:35.4]} 10... Nb4 {[%clk 0:01:51.6]} 11.
Bc4 {[%clk 0:02:28.9]} 11... O-O-O {[%clk 0:01:46.3]} 12. Nf3 {[%clk 0:02:23.9]}
12... Rhg8 {[%clk 0:01:21.9]} 13. a3 {[%clk 0:01:57.7]} 13... Na6 {[%clk
0:01:03.3]} 14. Qxf7 {[%clk 0:01:41.9]} 14... e5 {[%clk 0:00:19.9]} 15. Ne4
{[%clk 0:01:06.6]} 15... Bxa3 {[%clk 0:00:18.2]} 16. Qxf6 {[%clk 0:00:46.6]}
16... Kb8 {[%clk 0:00:17.2]} 17. Qxe5+ {[%clk 0:00:37.6]} 17... Ka8 {[%clk
0:00:15.3]} 18. bxa3 {[%clk 0:00:34.3]} 18... Rc8 {[%clk 0:00:15.4]} 19. Bb3
{[%clk 0:00:15.4]} 19... Rge8 {[%clk 0:00:14.4]} 20. Qd4 {[%clk 0:00:12.7]}
20... Qxa3+ {[%clk 0:00:13.9]} 21. Kb1 {[%clk 0:00:09.1]} 21... Nb4 {[%clk
0:00:12.2]} 22. Rd2 {[%clk 0:00:04.4]} 22... Ba4 {[%clk 0:00:07]} 23. d6 {[%clk
0:00:00.2]} 23... Bxb3 {[%clk 0:00:06.6]} 24. d7 {[%clk 0:00:00.4]} 24... Qa2+
{[%clk 0:00:06.9]} 25. Kc1 {[%clk 0:00:00.3]} 25... Rxc2+ {[%clk 0:00:07.2]} 0-1

[Event "Late-Titled-Tuesday-Blitz-May-07-2024"]
[Site "Chess.com"]
[Date "2024.05.07"]
[Round "8"]
[White "realburq"]
[Black "Alexei_Gubajdullin"]
[Result "0-1"]
[WhiteElo "2357"]
[BlackElo "2552"]
[TimeControl "180+1"]
[EndTime "15:28:53 PDT"]
[Termination "Alexei_Gubajdullin won by resignation"]

1. e4 {[%clk 0:03:00.9]} 1... g6 {[%clk 0:01:25.7]} 2. d4 {[%clk 0:02:59.5]}
2... Bg7 {[%clk 0:01:25.7]} 3. Nf3 {[%clk 0:02:59.7]} 3... d6 {[%clk 0:01:25.8]}
4. Be2 {[%clk 0:03:00]} 4... Nf6 {[%clk 0:01:26]} 5. Nc3 {[%clk 0:02:59.3]} 5...
O-O {[%clk 0:01:26.2]} 6. O-O {[%clk 0:02:59]} 6... Nc6 {[%clk 0:01:26.6]} 7. d5
{[%clk 0:02:56.7]} 7... Nb4 {[%clk 0:01:26.3]} 8. h3 {[%clk 0:02:51.1]} 8... a5
{[%clk 0:01:24.7]} 9. Re1 {[%clk 0:02:44.5]} 9... c6 {[%clk 0:01:24.6]} 10. Bg5
{[%clk 0:02:31.2]} 10... Nd7 {[%clk 0:01:23.6]} 11. a3 {[%clk 0:02:28.8]} 11...
Na6 {[%clk 0:01:23.2]} 12. Bf1 {[%clk 0:02:23.8]} 12... Re8 {[%clk 0:01:22.9]}
13. Qd2 {[%clk 0:02:20.9]} 13... Qb6 {[%clk 0:01:22.5]} 14. Na4 {[%clk
0:02:09.9]} 14... Qc7 {[%clk 0:01:22.2]} 15. Rad1 {[%clk 0:02:05.8]} 15... Ndc5
{[%clk 0:01:20.5]} 16. Nc3 {[%clk 0:01:41]} 16... Bd7 {[%clk 0:01:20]} 17. dxc6
{[%clk 0:01:22.7]} 17... bxc6 {[%clk 0:01:19.7]} 18. e5 {[%clk 0:01:20.7]} 18...
d5 {[%clk 0:01:19.6]} 19. Bf4 {[%clk 0:01:14.9]} 19... Ne6 {[%clk 0:01:18]} 20.
Bg3 {[%clk 0:01:14.4]} 20... Qb6 {[%clk 0:01:17.8]} 21. Na4 {[%clk 0:01:12.7]}
21... Qc7 {[%clk 0:01:17.6]} 22. Nc3 {[%clk 0:01:12.9]} 22... Reb8 {[%clk
0:01:16.9]} 23. b3 {[%clk 0:01:05.6]} 23... Nac5 {[%clk 0:01:16.8]} 24. a4
{[%clk 0:01:02.3]} 24... Na6 {[%clk 0:01:16.3]} 25. Bxa6 {[%clk 0:01:00.5]}
25... Rxa6 {[%clk 0:01:16]} 26. Ne2 {[%clk 0:01:00.5]} 26... Qb6 {[%clk
0:01:14.1]} 27. Ned4 {[%clk 0:01:00.2]} 27... c5 {[%clk 0:01:14]} 28. Nb5 {[%clk
0:00:58.3]} 28... Bc6 {[%clk 0:01:09]} 29. h4 {[%clk 0:00:53]} 29... h6 {[%clk
0:01:05.4]} 30. h5 {[%clk 0:00:53]} 30... g5 {[%clk 0:01:05.3]} 31. Qd3 {[%clk
0:00:39.1]} 31... Rd8 {[%clk 0:01:06.2]} 32. Nc3 {[%clk 0:00:26.5]} 32... Ra7
{[%clk 0:00:58]} 33. Nh2 {[%clk 0:00:26.3]} 33... Rad7 {[%clk 0:00:55.8]} 34.
Ng4 {[%clk 0:00:25.1]} 34... Qb4 {[%clk 0:00:54]} 35. f3 {[%clk 0:00:16.3]}
35... c4 {[%clk 0:00:53.8]} 36. Qd2 {[%clk 0:00:15.4]} 36... d4 {[%clk
0:00:52.4]} 37. Ne4 {[%clk 0:00:15]} 37... d3 {[%clk 0:00:47.1]} 38. bxc4 {[%clk
0:00:12.6]} 38... dxc2 {[%clk 0:00:35.6]} 39. Qxc2 {[%clk 0:00:11.6]} 39... Bxa4
{[%clk 0:00:35.7]} 40. Rxd7 {[%clk 0:00:10.3]} 40... Bxc2 {[%clk 0:00:35.1]} 41.
Rxe7 {[%clk 0:00:09.8]} 41... Qxe7 {[%clk 0:00:33.2]} 0-1

[Event "Late-Titled-Tuesday-Blitz-May-07-2024"]
[Site "Chess.com"]
[Date "2024.05.07"]
[Round "8"]
[White "brouetoscope"]
[Black "HajiyevKanan"]
[Result "1-0"]
[WhiteElo "2340"]
[BlackElo "2542"]
[TimeControl "180+1"]
[EndTime "15:28:55 PDT"]
[Termination "brouetoscope won by resignation"]

1. d4 {[%clk 0:03:00.9]} 1... d5 {[%clk 0:02:59.6]} 2. Bf4 {[%clk 0:02:54.9]}
2... c5 {[%clk 0:02:59.6]} 3. e3 {[%clk 0:02:55.2]} 3... cxd4 {[%clk 0:03:00.3]}
4. exd4 {[%clk 0:02:55.6]} 4... Nc6 {[%clk 0:03:01.2]} 5. c3 {[%clk 0:02:55.9]}
5... Nf6 {[%clk 0:03:02.1]} 6. Bd3 {[%clk 0:02:54.8]} 6... Bg4 {[%clk
0:03:02.4]} 7. Qb3 {[%clk 0:02:54.8]} 7... Qb6 {[%clk 0:03:03.1]} 8. Qxb6 {[%clk
0:02:54.8]} 8... axb6 {[%clk 0:03:04]} 9. Nd2 {[%clk 0:02:54.8]} 9... e6 {[%clk
0:03:04.5]} 10. Ngf3 {[%clk 0:02:55.2]} 10... Kd7 {[%clk 0:03:04]} 11. h4 {[%clk
0:02:48.8]} 11... h5 {[%clk 0:03:00.7]} 12. Ng5 {[%clk 0:02:44]} 12... Ke8
{[%clk 0:02:53.1]} 13. a3 {[%clk 0:02:25.9]} 13... Be7 {[%clk 0:02:47.2]} 14.
O-O {[%clk 0:02:11.8]} 14... g6 {[%clk 0:02:34.3]} 15. Rae1 {[%clk 0:02:05.8]}
15... Kf8 {[%clk 0:02:28.3]} 16. Ndf3 {[%clk 0:01:49.8]} 16... Nh7 {[%clk
0:02:21.7]} 17. Nxh7+ {[%clk 0:01:42]} 17... Rxh7 {[%clk 0:02:22.6]} 18. Ng5
{[%clk 0:01:30.6]} 18... Rh8 {[%clk 0:02:17.1]} 19. f3 {[%clk 0:01:30.3]} 19...
Bf5 {[%clk 0:02:16.7]} 20. Bxf5 {[%clk 0:01:28.1]} 20... gxf5 {[%clk 0:02:17.6]}
21. g3 {[%clk 0:01:18.3]} 21... b5 {[%clk 0:02:17.5]} 22. Nh3 {[%clk 0:01:13.8]}
22... Na5 {[%clk 0:02:15.1]} 23. Nf2 {[%clk 0:01:12.9]} 23... Nc4 {[%clk
0:02:15.1]} 24. Nd3 {[%clk 0:01:13.1]} 24... Rg8 {[%clk 0:02:11.5]} 25. Kh2
{[%clk 0:01:12.8]} 25... Rc8 {[%clk 0:02:08.2]} 26. Kh3 {[%clk 0:01:12.8]} 26...
Rc6 {[%clk 0:01:59.1]} 27. Re2 {[%clk 0:01:09.9]} 27... Bf6 {[%clk 0:01:55.4]}
28. Rg2 {[%clk 0:00:53.4]} 28... Be7 {[%clk 0:01:54.5]} 29. g4 {[%clk
0:00:51.6]} 29... hxg4+ {[%clk 0:01:54.5]} 30. fxg4 {[%clk 0:00:52.5]} 30...
fxg4+ {[%clk 0:01:55.2]} 31. Rxg4 {[%clk 0:00:53.4]} 31... Rxg4 {[%clk
0:01:55.4]} 32. Kxg4 {[%clk 0:00:54.3]} 32... f5+ {[%clk 0:01:53.8]} 33. Kh3
{[%clk 0:00:52.4]} 33... Kf7 {[%clk 0:01:54.2]} 34. b3 {[%clk 0:00:35.4]} 34...
Nxa3 {[%clk 0:01:37.2]} 35. Ne5+ {[%clk 0:00:34.7]} 35... Kf8 {[%clk 0:01:33.5]}
36. Nxc6 {[%clk 0:00:31.2]} 36... bxc6 {[%clk 0:01:34.4]} 37. h5 {[%clk
0:00:25.6]} 37... b4 {[%clk 0:01:32.8]} 38. cxb4 {[%clk 0:00:22]} 38... Nb5
{[%clk 0:01:33.2]} 39. Be5 {[%clk 0:00:21.3]} 39... Kf7 {[%clk 0:01:20.5]} 40.
Rg1 {[%clk 0:00:19.7]} 40... Bf8 {[%clk 0:01:20.5]} 41. Kh4 {[%clk 0:00:17.8]}
41... Be7+ {[%clk 0:01:19.6]} 42. Kg3 {[%clk 0:00:17.5]} 42... Bf8 {[%clk
0:01:20.5]} 43. Kf4 {[%clk 0:00:18]} 43... Bxb4 {[%clk 0:01:20.5]} 44. Ke3
{[%clk 0:00:07.8]} 44... Bf8 {[%clk 0:01:18.4]} 45. Kd3 {[%clk 0:00:07.5]} 45...
Na7 {[%clk 0:00:56.5]} 46. Bf4 {[%clk 0:00:07.6]} 46... Nb5 {[%clk 0:00:55.9]}
47. h6 {[%clk 0:00:07.9]} 47... Nd6 {[%clk 0:00:53.5]} 48. h7 {[%clk 0:00:06.8]}
48... Bg7 {[%clk 0:00:49.7]} 49. Be5 {[%clk 0:00:07.2]} 1-0

[Event "Late-Titled-Tuesday-Blitz-May-07-2024"]
[Site "Chess.com"]
[Date "2024.05.07"]
[Round "8"]
[White "Msb2"]
[Black "crescentmoon2411"]
[Result "1-0"]
[WhiteElo "3041"]
[BlackElo "2879"]
[TimeControl "180+1"]
[EndTime "15:28:59 PDT"]
[Termination "Msb2 won by resignation"]

1. d4 {[%clk 0:03:00.9]} 1... d5 {[%clk 0:02:57.9]} 2. c4 {[%clk 0:03:00.7]}
2... e6 {[%clk 0:02:58.5]} 3. Nc3 {[%clk 0:03:01.1]} 3... a6 {[%clk 0:02:58.5]}
4. e4 {[%clk 0:03:01]} 4... dxe4 {[%clk 0:02:58.1]} 5. Nxe4 {[%clk 0:03:01.9]}
5... Bb4+ {[%clk 0:02:58.4]} 6. Nc3 {[%clk 0:03:02]} 6... c5 {[%clk 0:02:58.4]}
7. a3 {[%clk 0:03:02.6]} 7... Bxc3+ {[%clk 0:02:58.7]} 8. bxc3 {[%clk
0:03:03.5]} 8... Nf6 {[%clk 0:02:58.8]} 9. Nf3 {[%clk 0:03:03.6]} 9... Nc6
{[%clk 0:02:56.7]} 10. Be2 {[%clk 0:02:57.3]} 10... O-O {[%clk 0:02:55.8]} 11.
O-O {[%clk 0:02:57.5]} 11... h6 {[%clk 0:02:49.5]} 12. Bf4 {[%clk 0:02:46.7]}
12... b6 {[%clk 0:02:40.1]} 13. Rb1 {[%clk 0:02:43.1]} 13... Re8 {[%clk
0:02:11.9]} 14. h3 {[%clk 0:02:39.5]} 14... Bd7 {[%clk 0:02:05.9]} 15. Qb3
{[%clk 0:02:29.7]} 15... cxd4 {[%clk 0:02:02.6]} 16. cxd4 {[%clk 0:02:28.5]}
16... b5 {[%clk 0:02:03.2]} 17. cxb5 {[%clk 0:02:22.5]} 17... axb5 {[%clk
0:02:04.1]} 18. Bxb5 {[%clk 0:02:23.1]} 18... Na5 {[%clk 0:01:48.8]} 19. Qd3
{[%clk 0:02:17.5]} 19... Bxb5 {[%clk 0:01:44.8]} 20. Rxb5 {[%clk 0:02:18.4]}
20... Nc6 {[%clk 0:01:44.6]} 21. Rc1 {[%clk 0:02:11.3]} 21... Ne7 {[%clk
0:01:10.4]} 22. Ne5 {[%clk 0:02:06.4]} 22... Nf5 {[%clk 0:01:06.5]} 23. Rb7
{[%clk 0:01:59.2]} 23... Qxd4 {[%clk 0:01:05.2]} 24. Qf3 {[%clk 0:01:44.8]}
24... Qd5 {[%clk 0:00:49.4]} 25. Rcc7 {[%clk 0:01:02.2]} 25... Qxf3 {[%clk
0:00:47.1]} 26. Nxf3 {[%clk 0:00:58.2]} 26... Nd5 {[%clk 0:00:46.5]} 27. Rxf7
{[%clk 0:00:45]} 27... Nxf4 {[%clk 0:00:43.6]} 28. g4 {[%clk 0:00:45.5]} 28...
Nd6 {[%clk 0:00:29]} 29. Rxg7+ {[%clk 0:00:45.7]} 29... Kf8 {[%clk 0:00:29.1]}
30. Rbd7 {[%clk 0:00:46.4]} 30... Red8 {[%clk 0:00:17.3]} 31. Ne5 {[%clk
0:00:42.8]} 31... Rxd7 {[%clk 0:00:08]} 32. Rxd7 {[%clk 0:00:43.7]} 32... Ra6
{[%clk 0:00:08.4]} 33. Kh2 {[%clk 0:00:44.4]} 33... Ke8 {[%clk 0:00:07.3]} 34.
Rh7 {[%clk 0:00:44.5]} 34... Rxa3 {[%clk 0:00:05.9]} 35. Rxh6 {[%clk 0:00:44.4]}
35... Ne4 {[%clk 0:00:04.6]} 36. Rh8+ {[%clk 0:00:26.6]} 36... Ke7 {[%clk
0:00:04.7]} 37. Rh7+ {[%clk 0:00:27.5]} 37... Kf8 {[%clk 0:00:04.3]} 38. Rf7+
{[%clk 0:00:26.4]} 38... Ke8 {[%clk 0:00:04.4]} 39. Rxf4 {[%clk 0:00:27.3]}
39... Ng5 {[%clk 0:00:04.5]} 40. f3 {[%clk 0:00:26.4]} 40... Ke7 {[%clk
0:00:03.7]} 41. h4 {[%clk 0:00:26]} 1-0

[Event "Late-Titled-Tuesday-Blitz-May-07-2024"]
[Site "Chess.com"]
[Date "2024.05.07"]
[Round "8"]
[White "GoltsevDmitry2000"]
[Black "Naoki"]
[Result "0-1"]
[WhiteElo "2736"]
[BlackElo "2606"]
[TimeControl "180+1"]
[EndTime "15:29:00 PDT"]
[Termination "Naoki won by checkmate"]

1. e4 {[%clk 0:03:00.2]} 1... e5 {[%clk 0:02:59.8]} 2. Nf3 {[%clk 0:02:59.6]}
2... Nc6 {[%clk 0:03:00.4]} 3. Bb5 {[%clk 0:02:59.6]} 3... a6 {[%clk 0:03:00.1]}
4. Ba4 {[%clk 0:02:59.9]} 4... Nf6 {[%clk 0:03:00.3]} 5. O-O {[%clk 0:03:00.2]}
5... Be7 {[%clk 0:03:00.1]} 6. Re1 {[%clk 0:02:58.2]} 6... b5 {[%clk 0:03:00.1]}
7. Bb3 {[%clk 0:02:58.5]} 7... O-O {[%clk 0:03:00.7]} 8. c3 {[%clk 0:02:58.3]}
8... d5 {[%clk 0:03:00.7]} 9. d4 {[%clk 0:02:58.4]} 9... Nxe4 {[%clk 0:02:48.6]}
10. Nxe5 {[%clk 0:02:54.3]} 10... Nxe5 {[%clk 0:02:44.1]} 11. dxe5 {[%clk
0:02:55.2]} 11... Be6 {[%clk 0:02:31.7]} 12. Nd2 {[%clk 0:02:54.2]} 12... Nxd2
{[%clk 0:02:16.6]} 13. Bxd2 {[%clk 0:02:53.9]} 13... Bf5 {[%clk 0:02:14.1]} 14.
Qf3 {[%clk 0:02:51.8]} 14... Be4 {[%clk 0:02:13]} 15. Qh3 {[%clk 0:02:48.5]}
15... c6 {[%clk 0:02:02.7]} 16. Rad1 {[%clk 0:02:40]} 16... Qc8 {[%clk
0:02:01.2]} 17. Qg3 {[%clk 0:02:29.3]} 17... Qf5 {[%clk 0:02:01.2]} 18. f3
{[%clk 0:02:14.4]} 18... Bc2 {[%clk 0:02:01.2]} 19. Bh6 {[%clk 0:02:11.2]} 19...
Qg6 {[%clk 0:01:28.8]} 20. Bxg7 {[%clk 0:01:42.5]} 20... Bc5+ {[%clk 0:00:51.7]}
21. Kh1 {[%clk 0:01:39.8]} 21... Qxg3 {[%clk 0:00:45.7]} 22. hxg3 {[%clk
0:01:38.2]} 22... Kxg7 {[%clk 0:00:45.9]} 23. Bxc2 {[%clk 0:01:37.5]} 23... Bf2
{[%clk 0:00:46.2]} 24. Rf1 {[%clk 0:01:34.9]} 24... Bxg3 {[%clk 0:00:46.3]} 25.
f4 {[%clk 0:01:35.2]} 25... h5 {[%clk 0:00:39.8]} 26. Rd3 {[%clk 0:01:24.8]}
26... h4 {[%clk 0:00:39.8]} 27. Rff3 {[%clk 0:01:20.9]} 27... f6 {[%clk
0:00:25.7]} 28. e6 {[%clk 0:01:04.8]} 28... f5 {[%clk 0:00:25.3]} 29. Rde3
{[%clk 0:01:04.5]} 29... Kf6 {[%clk 0:00:25.1]} 30. Re5 {[%clk 0:01:01.2]} 30...
Ke7 {[%clk 0:00:20.6]} 31. Bxf5 {[%clk 0:00:59]} 31... Rf6 {[%clk 0:00:20.7]}
32. Bg4 {[%clk 0:00:47.9]} 32... Raf8 {[%clk 0:00:21.3]} 33. Rg5 {[%clk
0:00:25]} 33... Rxf4 {[%clk 0:00:19.3]} 34. Rg7+ {[%clk 0:00:15.3]} 34... Kd6
{[%clk 0:00:18.3]} 35. Rxf4 {[%clk 0:00:15.3]} 35... Rxf4 {[%clk 0:00:16.2]} 36.
Rd7+ {[%clk 0:00:15.4]} 36... Kc5 {[%clk 0:00:15.1]} 37. Bf3 {[%clk 0:00:07.1]}
37... Rf5 {[%clk 0:00:12.9]} 38. e7 {[%clk 0:00:04.3]} 38... Re5 {[%clk
0:00:13.3]} 39. Be2 {[%clk 0:00:02.8]} 39... Rxe2 {[%clk 0:00:13.5]} 40. Kg1
{[%clk 0:00:03.3]} 40... Re1# {[%clk 0:00:13.5]} 0-1

[Event "Late-Titled-Tuesday-Blitz-May-07-2024"]
[Site "Chess.com"]
[Date "2024.05.07"]
[Round "8"]
[White "Hirna2005"]
[Black "robertoalejandro10"]
[Result "0-1"]
[WhiteElo "2333"]
[BlackElo "2508"]
[TimeControl "180+1"]
[EndTime "15:29:01 PDT"]
[Termination "robertoalejandro10 won on time"]

1. e4 {[%clk 0:03:00.9]} 1... c5 {[%clk 0:02:59.2]} 2. c3 {[%clk 0:03:00.6]}
2... d5 {[%clk 0:02:57.9]} 3. exd5 {[%clk 0:03:00.7]} 3... Qxd5 {[%clk
0:02:58.6]} 4. Nf3 {[%clk 0:03:01]} 4... g6 {[%clk 0:02:58.3]} 5. Na3 {[%clk
0:02:59]} 5... Bg7 {[%clk 0:02:57.6]} 6. Bc4 {[%clk 0:02:58.7]} 6... Qd8 {[%clk
0:02:54.8]} 7. O-O {[%clk 0:02:57.1]} 7... Nf6 {[%clk 0:02:54.5]} 8. d4 {[%clk
0:02:53]} 8... cxd4 {[%clk 0:02:53.3]} 9. Nxd4 {[%clk 0:02:53.1]} 9... O-O
{[%clk 0:02:53.8]} 10. Bf4 {[%clk 0:02:50.8]} 10... Nbd7 {[%clk 0:02:41.5]} 11.
Re1 {[%clk 0:02:27.4]} 11... e5 {[%clk 0:02:07.4]} 12. Bxe5 {[%clk 0:02:24.6]}
12... Nxe5 {[%clk 0:02:07.7]} 13. Rxe5 {[%clk 0:02:24.5]} 13... Qc7 {[%clk
0:02:07.7]} 14. Re3 {[%clk 0:02:14.9]} 14... a6 {[%clk 0:01:47.6]} 15. h3 {[%clk
0:02:05.1]} 15... b5 {[%clk 0:01:45]} 16. Bb3 {[%clk 0:01:59.3]} 16... Bb7
{[%clk 0:01:42.3]} 17. Qe2 {[%clk 0:01:55.8]} 17... Nd5 {[%clk 0:01:40]} 18. Re4
{[%clk 0:01:33.8]} 18... b4 {[%clk 0:01:33.8]} 19. Bxd5 {[%clk 0:01:26]} 19...
Bxd5 {[%clk 0:01:32.6]} 20. Re7 {[%clk 0:01:25.7]} 20... Qc5 {[%clk 0:01:23.5]}
21. Nac2 {[%clk 0:01:20.5]} 21... bxc3 {[%clk 0:01:21.3]} 22. bxc3 {[%clk
0:01:20.2]} 22... Qxc3 {[%clk 0:01:20.2]} 23. Rd1 {[%clk 0:01:18.3]} 23... Bxa2
{[%clk 0:01:12.5]} 24. Rd3 {[%clk 0:00:50]} 24... Qb2 {[%clk 0:00:41.8]} 25. Rc7
{[%clk 0:00:28.8]} 25... Rac8 {[%clk 0:00:23.6]} 26. Qe7 {[%clk 0:00:19.7]}
26... Rxc7 {[%clk 0:00:18.6]} 27. Qxc7 {[%clk 0:00:19.7]} 27... Bb1 {[%clk
0:00:16.8]} 28. Rb3 {[%clk 0:00:03.7]} 28... Qc1+ {[%clk 0:00:16.1]} 29. Kh2
{[%clk 0:00:04.3]} 29... Bxd4 {[%clk 0:00:15.9]} 30. Rxb1 {[%clk 0:00:03.5]}
30... Qxb1 {[%clk 0:00:13.8]} 31. Nxd4 {[%clk 0:00:03.8]} 31... Qe4 {[%clk
0:00:13.5]} 32. Nc6 {[%clk 0:00:02.5]} 32... Qe6 {[%clk 0:00:12.1]} 33. Ne7+
{[%clk 0:00:01.6]} 33... Kg7 {[%clk 0:00:12.4]} 34. Qc3+ {[%clk 0:00:01.3]}
34... Qf6 {[%clk 0:00:11.8]} 35. Qc5 {[%clk 0:00:00.7]} 35... Re8 {[%clk
0:00:11.2]} 36. Nd5 {[%clk 0:00:00.4]} 36... Qe5+ {[%clk 0:00:11.2]} 37. g3
{[%clk 0:00:00.5]} 37... Re6 {[%clk 0:00:11]} 0-1